[Event "*** Titled Tuesday Blitz"]
[Site "Chess.com"]
[Date "2021.04.06"]
[Round "10"]
[White "Leonid_Starozhilov"]
[Black "VD_coach"]
[Result "1-0"]
[WhiteElo "2707"]
[BlackElo "2508"]
[TimeControl "180+1"]
[EndTime "11:56:57 PDT"]
[Termination "Leonid_Starozhilov won by resignation"]

1. e4 {[%clk 0:03:00.9]} 1... c5 {[%clk 0:02:59.8]} 2. Nf3 {[%clk 0:03:00.7]}
2... d6 {[%clk 0:03:00]} 3. Bb5+ {[%clk 0:03:00.4]} 3... Nd7 {[%clk 0:02:59.4]}
4. O-O {[%clk 0:02:59.8]} 4... Nf6 {[%clk 0:02:59.3]} 5. Re1 {[%clk 0:02:59.7]}
5... a6 {[%clk 0:02:58.2]} 6. Bxd7+ {[%clk 0:02:59.9]} 6... Bxd7 {[%clk
0:02:58.1]} 7. c3 {[%clk 0:03:00.8]} 7... Bc6 {[%clk 0:02:57.3]} 8. d4 {[%clk
0:03:00.9]} 8... Bxe4 {[%clk 0:02:54.3]} 9. Bg5 {[%clk 0:03:00.6]} 9... Bxb1
{[%clk 0:02:48.4]} 10. Rxb1 {[%clk 0:02:57.9]} 10... e6 {[%clk 0:02:48.3]} 11.
Bxf6 {[%clk 0:02:52.5]} 11... Qxf6 {[%clk 0:02:42]} 12. dxc5 {[%clk 0:02:52.5]}
12... dxc5 {[%clk 0:02:26.6]} 13. Qa4+ {[%clk 0:02:52]} 13... b5 {[%clk
0:02:26.2]} 14. Qe4 {[%clk 0:02:52]} 14... Rc8 {[%clk 0:02:18.5]} 15. Qb7 {[%clk
0:02:31.8]} 15... Qd8 {[%clk 0:02:10.1]} 16. Qxa6 {[%clk 0:02:25.4]} 16... Rb8
{[%clk 0:01:50.9]} 17. a4 {[%clk 0:01:17.4]} 17... Qb6 {[%clk 0:01:44.8]} 18.
axb5 {[%clk 0:01:16.7]} 18... Qxb5 {[%clk 0:01:44.2]} 19. Qa7 {[%clk 0:01:14]}
19... Qb7 {[%clk 0:01:41.6]} 20. Qa4+ {[%clk 0:01:14]} 20... Qb5 {[%clk
0:01:41.7]} 21. Qg4 {[%clk 0:01:12.2]} 21... h5 {[%clk 0:01:37.1]} 22. Qg3
{[%clk 0:01:12.6]} 22... h4 {[%clk 0:01:28.6]} 23. Nxh4 {[%clk 0:00:56.2]} 23...
Rd8 {[%clk 0:01:22.9]} 24. Nf3 {[%clk 0:00:33.4]} 24... Qd3 {[%clk 0:01:00.2]}
25. Qc7 {[%clk 0:00:29.1]} 25... Bd6 {[%clk 0:00:35]} 26. Qc6+ {[%clk
0:00:28.4]} 26... Ke7 {[%clk 0:00:35.1]} 27. Rbd1 {[%clk 0:00:28.9]} 27... Qf5
{[%clk 0:00:23]} 28. h3 {[%clk 0:00:11.9]} 28... g5 {[%clk 0:00:22.3]} 29. Qb7+
{[%clk 0:00:10.1]} 29... Rd7 {[%clk 0:00:22.1]} 30. Qc6 {[%clk 0:00:07]} 30...
g4 {[%clk 0:00:19.9]} 31. hxg4 {[%clk 0:00:06.8]} 31... Qh7 {[%clk 0:00:19.6]}
32. Kf1 {[%clk 0:00:06.1]} 32... Qh1+ {[%clk 0:00:19]} 33. Ke2 {[%clk
0:00:06.4]} 33... Qh7 {[%clk 0:00:16.2]} 34. Rd3 {[%clk 0:00:04.2]} 34... Rb8
{[%clk 0:00:12.8]} 35. Rd2 {[%clk 0:00:03.8]} 35... Rbb7 {[%clk 0:00:08.3]} 36.
Qa4 {[%clk 0:00:03.9]} 36... Ra7 {[%clk 0:00:08.2]} 37. Qc2 {[%clk 0:00:04.1]}
37... Qg7 {[%clk 0:00:07.5]} 38. Red1 {[%clk 0:00:04.1]} 38... Ra6 {[%clk
0:00:06.9]} 39. g3 {[%clk 0:00:04.2]} 39... Kf8 {[%clk 0:00:07]} 40. Qd3 {[%clk
0:00:04.4]} 40... Qf6 {[%clk 0:00:06.6]} 41. Qxa6 {[%clk 0:00:04.5]} 41... Qe7
{[%clk 0:00:06.7]} 42. Qa8+ {[%clk 0:00:04.6]} 42... Kg7 {[%clk 0:00:06.9]} 43.
Qe4 {[%clk 0:00:05.3]} 43... c4 {[%clk 0:00:06.1]} 44. Rxd6 {[%clk 0:00:05.4]}
44... Rxd6 {[%clk 0:00:06.3]} 45. Qe5+ {[%clk 0:00:05.7]} 45... f6 {[%clk
0:00:06.2]} 46. Qxd6 {[%clk 0:00:06.1]} 46... Qf7 {[%clk 0:00:06.1]} 47. Qd7
{[%clk 0:00:06.7]} 1-0

[Event "*** Titled Tuesday Blitz"]
[Site "Chess.com"]
[Date "2021.04.06"]
[Round "10"]
[White "2346PL"]
[Black "Chernobay_Artem"]
[Result "0-1"]
[WhiteElo "2488"]
[BlackElo "2591"]
[TimeControl "180+1"]
[EndTime "11:56:57 PDT"]
[Termination "Chernobay_Artem won on time"]

1. d4 {[%clk 0:03:00.4]} 1... Nf6 {[%clk 0:03:00]} 2. Nc3 {[%clk 0:03:00.6]}
2... d5 {[%clk 0:02:53.3]} 3. Bf4 {[%clk 0:03:00.8]} 3... a6 {[%clk 0:02:52.6]}
4. e3 {[%clk 0:03:00.6]} 4... e6 {[%clk 0:02:48.9]} 5. g4 {[%clk 0:03:00.2]}
5... c5 {[%clk 0:02:20.9]} 6. g5 {[%clk 0:02:58.5]} 6... Nfd7 {[%clk 0:02:12.2]}
7. Nf3 {[%clk 0:02:58.9]} 7... Nc6 {[%clk 0:02:11.7]} 8. h4 {[%clk 0:02:57.2]}
8... b5 {[%clk 0:01:48.8]} 9. Qd2 {[%clk 0:02:55.6]} 9... Nb6 {[%clk 0:01:37.8]}
10. Ne5 {[%clk 0:02:35.8]} 10... Bb7 {[%clk 0:01:21.5]} 11. Nd1 {[%clk
0:02:13.5]} 11... cxd4 {[%clk 0:01:10]} 12. exd4 {[%clk 0:02:12.7]} 12... Nc4
{[%clk 0:01:08.2]} 13. Nxc4 {[%clk 0:02:11.1]} 13... dxc4 {[%clk 0:01:02.5]} 14.
Bg2 {[%clk 0:02:11.2]} 14... Qd7 {[%clk 0:00:57.3]} 15. c3 {[%clk 0:02:03]}
15... Nxd4 {[%clk 0:00:46.6]} 16. cxd4 {[%clk 0:01:40.8]} 16... Bxg2 {[%clk
0:00:45.9]} 17. Rg1 {[%clk 0:01:41.7]} 17... Be4 {[%clk 0:00:35.3]} 18. Nc3
{[%clk 0:01:41.2]} 18... Bd3 {[%clk 0:00:35.6]} 19. Qe3 {[%clk 0:01:36.4]} 19...
Rd8 {[%clk 0:00:20.9]} 20. Be5 {[%clk 0:01:34]} 20... Rg8 {[%clk 0:00:09.8]} 21.
O-O-O {[%clk 0:01:27.6]} 21... Bd6 {[%clk 0:00:09.8]} 22. Ne4 {[%clk 0:01:23.9]}
22... Bxe5 {[%clk 0:00:09.3]} 23. dxe5 {[%clk 0:01:24]} 23... Qd4 {[%clk
0:00:05.1]} 24. Nd6+ {[%clk 0:01:11.5]} 24... Rxd6 {[%clk 0:00:05.4]} 25. exd6
{[%clk 0:01:11.3]} 25... Qxd6 {[%clk 0:00:05.7]} 26. Qa7 {[%clk 0:01:07.9]}
26... g6 {[%clk 0:00:01.7]} 27. Qa8+ {[%clk 0:01:05.1]} 27... Qd8 {[%clk
0:00:02.2]} 28. Qxa6 {[%clk 0:01:03.1]} 28... Kf8 {[%clk 0:00:02.7]} 29. Qa5
{[%clk 0:00:59.1]} 29... Qd4 {[%clk 0:00:02.7]} 30. Qxb5 {[%clk 0:00:32.3]}
30... Kg7 {[%clk 0:00:02.4]} 31. Qb4 {[%clk 0:00:30.8]} 31... Ra8 {[%clk
0:00:02.7]} 32. a3 {[%clk 0:00:29.1]} 32... Qxf2 {[%clk 0:00:02.7]} 33. Qd2
{[%clk 0:00:26.9]} 33... Qb6 {[%clk 0:00:01.6]} 34. Qc3+ {[%clk 0:00:26.9]}
34... Kg8 {[%clk 0:00:02.2]} 35. Rg2 {[%clk 0:00:24]} 35... Rb8 {[%clk
0:00:02.7]} 36. Rg4 {[%clk 0:00:18.9]} 36... Qb7 {[%clk 0:00:02.9]} 37. h5
{[%clk 0:00:18.4]} 37... gxh5 {[%clk 0:00:02.2]} 38. Rf4 {[%clk 0:00:18.2]}
38... Qg2 {[%clk 0:00:02.5]} 39. Qd2 {[%clk 0:00:08.9]} 39... Qg3 {[%clk
0:00:01.8]} 40. Rf6 {[%clk 0:00:05.8]} 40... Rb3 {[%clk 0:00:01.8]} 41. a4
{[%clk 0:00:03.7]} 41... Qe5 {[%clk 0:00:02.1]} 42. a5 {[%clk 0:00:01.4]} 42...
c3 {[%clk 0:00:02.4]} 43. Qxd3 {[%clk 0:00:01.2]} 43... cxb2+ {[%clk 0:00:03.3]}
44. Kb1 {[%clk 0:00:01.5]} 44... Rxd3 {[%clk 0:00:04.2]} 45. Rxd3 {[%clk
0:00:02]} 45... Qxg5 {[%clk 0:00:04.8]} 46. Rb3 {[%clk 0:00:02.5]} 46... Qxf6
{[%clk 0:00:05.1]} 47. a6 {[%clk 0:00:02.4]} 47... Qf1+ {[%clk 0:00:05.1]} 48.
Kxb2 {[%clk 0:00:02]} 48... Qxa6 {[%clk 0:00:06]} 0-1

[Event "*** Titled Tuesday Blitz"]
[Site "Chess.com"]
[Date "2021.04.06"]
[Round "10"]
[White "GM_LOADING"]
[Black "Guzman70"]
[Result "1/2-1/2"]
[WhiteElo "2539"]
[BlackElo "2372"]
[TimeControl "180+1"]
[EndTime "11:56:57 PDT"]
[Termination "Game drawn - insufficient material"]

1. e4 {[%clk 0:03:00.9]} 1... c5 {[%clk 0:02:59.4]} 2. Nf3 {[%clk 0:03:00.6]}
2... Nc6 {[%clk 0:02:59.6]} 3. d4 {[%clk 0:03:01.2]} 3... cxd4 {[%clk
0:03:00.5]} 4. Nxd4 {[%clk 0:03:01.6]} 4... Nf6 {[%clk 0:03:00.6]} 5. Nc3 {[%clk
0:03:02.1]} 5... d6 {[%clk 0:03:01]} 6. Bg5 {[%clk 0:03:01.1]} 6... e6 {[%clk
0:03:00.1]} 7. Qd3 {[%clk 0:03:01.1]} 7... a6 {[%clk 0:02:57.9]} 8. O-O-O {[%clk
0:03:00.8]} 8... h6 {[%clk 0:02:57.3]} 9. Bh4 {[%clk 0:03:00]} 9... Bd7 {[%clk
0:02:41.4]} 10. Kb1 {[%clk 0:02:55.8]} 10... b5 {[%clk 0:02:28]} 11. f4 {[%clk
0:02:55.4]} 11... Be7 {[%clk 0:02:22.1]} 12. g4 {[%clk 0:02:26.9]} 12... Nxg4
{[%clk 0:02:11.4]} 13. Bxe7 {[%clk 0:02:25.9]} 13... Qxe7 {[%clk 0:02:09.5]} 14.
Qg3 {[%clk 0:02:25.6]} 14... h5 {[%clk 0:01:51.8]} 15. Bg2 {[%clk 0:02:21.3]}
15... Rc8 {[%clk 0:01:46.5]} 16. Rhe1 {[%clk 0:02:11.6]} 16... O-O {[%clk
0:01:33.5]} 17. Nxc6 {[%clk 0:02:03.8]} 17... Bxc6 {[%clk 0:01:32.6]} 18. Bf3
{[%clk 0:02:03.4]} 18... b4 {[%clk 0:01:29.8]} 19. Nd5 {[%clk 0:01:59.1]} 19...
exd5 {[%clk 0:01:25.5]} 20. exd5 {[%clk 0:01:58.2]} 20... Qf6 {[%clk 0:01:22.8]}
21. dxc6 {[%clk 0:01:54.7]} 21... a5 {[%clk 0:01:15.9]} 22. h3 {[%clk
0:01:43.8]} 22... Nh6 {[%clk 0:01:15.3]} 23. Qg5 {[%clk 0:01:43.4]} 23... Qxg5
{[%clk 0:01:12.8]} 24. fxg5 {[%clk 0:01:44.3]} 24... Nf5 {[%clk 0:01:12.7]} 25.
b3 {[%clk 0:01:41.4]} 25... g6 {[%clk 0:01:10.8]} 26. Rd5 {[%clk 0:01:35.7]}
26... Nh4 {[%clk 0:01:02.5]} 27. Bh1 {[%clk 0:01:29.9]} 27... Rxc6 {[%clk
0:01:02.3]} 28. Rxa5 {[%clk 0:01:24.8]} 28... Rc5 {[%clk 0:01:02.4]} 29. Rxc5
{[%clk 0:01:21.8]} 29... dxc5 {[%clk 0:01:03.3]} 30. Re5 {[%clk 0:01:22.2]}
30... Rc8 {[%clk 0:01:02.2]} 31. Bd5 {[%clk 0:01:19.7]} 31... Rc7 {[%clk
0:01:00]} 32. Be4 {[%clk 0:01:17.5]} 32... Kg7 {[%clk 0:00:59.8]} 33. Kb2 {[%clk
0:01:15.7]} 33... c4 {[%clk 0:00:59.7]} 34. bxc4 {[%clk 0:01:14.3]} 34... Rxc4
{[%clk 0:01:00.6]} 35. Kb3 {[%clk 0:01:13.5]} 35... Rd4 {[%clk 0:01:00]} 36. c3
{[%clk 0:01:07.8]} 36... bxc3 {[%clk 0:00:59.6]} 37. Kxc3 {[%clk 0:01:08.7]}
37... Ra4 {[%clk 0:00:59.3]} 38. Kb3 {[%clk 0:01:08.1]} 38... Ra7 {[%clk
0:00:57.5]} 39. a4 {[%clk 0:01:08.1]} 39... f6 {[%clk 0:00:57.8]} 40. gxf6+
{[%clk 0:01:07.6]} 40... Kxf6 {[%clk 0:00:58.7]} 41. Rb5 {[%clk 0:01:06.9]}
41... Re7 {[%clk 0:00:57.3]} 42. Bd3 {[%clk 0:01:02.5]} 42... Re3 {[%clk
0:00:55.8]} 43. Kc3 {[%clk 0:01:01.1]} 43... Ng2 {[%clk 0:00:54.6]} 44. Kd4
{[%clk 0:00:57.6]} 44... Rxh3 {[%clk 0:00:51.6]} 45. a5 {[%clk 0:00:58]} 45...
Nf4 {[%clk 0:00:49.9]} 46. Bc4 {[%clk 0:00:58.3]} 46... Rh1 {[%clk 0:00:47.8]}
47. a6 {[%clk 0:00:57.6]} 47... Ra1 {[%clk 0:00:47.6]} 48. Rb7 {[%clk
0:00:54.8]} 48... h4 {[%clk 0:00:46.4]} 49. a7 {[%clk 0:00:51.6]} 49... h3
{[%clk 0:00:46.6]} 50. Bb5 {[%clk 0:00:35.1]} 50... g5 {[%clk 0:00:40.6]} 51.
Bc6 {[%clk 0:00:33.3]} 51... g4 {[%clk 0:00:39.7]} 52. Ke4 {[%clk 0:00:28.8]}
52... Ne6 {[%clk 0:00:38.8]} 53. Rh7 {[%clk 0:00:06.9]} 53... Ng5+ {[%clk
0:00:33.7]} 54. Kf4 {[%clk 0:00:07.2]} 54... Nxh7 {[%clk 0:00:33.9]} 55. a8=Q
{[%clk 0:00:07.5]} 55... Rxa8 {[%clk 0:00:32.2]} 56. Bxa8 {[%clk 0:00:08.4]}
56... Ng5 {[%clk 0:00:26.8]} 57. Kxg4 {[%clk 0:00:08.4]} 57... h2 {[%clk
0:00:26.1]} 58. Kg3 {[%clk 0:00:08.5]} 58... Ne6 {[%clk 0:00:25.2]} 59. Kxh2
{[%clk 0:00:08.3]} 1/2-1/2

[Event "*** Titled Tuesday Blitz"]
[Site "Chess.com"]
[Date "2021.04.06"]
[Round "10"]
[White "PavelShkapenko"]
[Black "TheCount"]
[Result "0-1"]
[WhiteElo "2708"]
[BlackElo "2621"]
[TimeControl "180+1"]
[EndTime "11:56:58 PDT"]
[Termination "TheCount won by resignation"]

1. e4 {[%clk 0:03:00.9]} 1... c5 {[%clk 0:02:57.7]} 2. c3 {[%clk 0:03:00.7]}
2... Nf6 {[%clk 0:02:57.4]} 3. e5 {[%clk 0:03:01]} 3... Nd5 {[%clk 0:02:58]} 4.
d4 {[%clk 0:03:01.9]} 4... cxd4 {[%clk 0:02:58.7]} 5. cxd4 {[%clk 0:03:02.8]}
5... d6 {[%clk 0:02:58.9]} 6. Nf3 {[%clk 0:03:02.3]} 6... Nc6 {[%clk 0:02:58.4]}
7. Bc4 {[%clk 0:03:02.5]} 7... e6 {[%clk 0:02:58.9]} 8. O-O {[%clk 0:03:00.6]}
8... Be7 {[%clk 0:02:59.4]} 9. Bd2 {[%clk 0:03:01.1]} 9... O-O {[%clk
0:02:58.7]} 10. Nc3 {[%clk 0:03:01.7]} 10... Nxc3 {[%clk 0:02:56.7]} 11. Bxc3
{[%clk 0:03:02.6]} 11... dxe5 {[%clk 0:02:51.3]} 12. dxe5 {[%clk 0:03:02.5]}
12... Qc7 {[%clk 0:02:52]} 13. Qe2 {[%clk 0:03:02.4]} 13... Bd7 {[%clk
0:02:47.7]} 14. Bd3 {[%clk 0:02:59.5]} 14... Rfd8 {[%clk 0:02:47.6]} 15. h4
{[%clk 0:02:55]} 15... Be8 {[%clk 0:02:46.1]} 16. Rac1 {[%clk 0:02:47]} 16...
Rd7 {[%clk 0:02:16.1]} 17. Be4 {[%clk 0:01:40.6]} 17... Qb6 {[%clk 0:02:03.2]}
18. Rfd1 {[%clk 0:01:33.6]} 18... Rxd1+ {[%clk 0:01:59.1]} 19. Rxd1 {[%clk
0:01:31.6]} 19... Rd8 {[%clk 0:02:00]} 20. Rxd8 {[%clk 0:01:31.1]} 20... Qxd8
{[%clk 0:01:59.2]} 21. h5 {[%clk 0:01:29.5]} 21... g6 {[%clk 0:01:51]} 22. Qe3
{[%clk 0:01:19.1]} 22... Qb6 {[%clk 0:01:13.8]} 23. Qf4 {[%clk 0:01:11.2]} 23...
Qa6 {[%clk 0:01:06.2]} 24. Nh2 {[%clk 0:00:49.1]} 24... Qe2 {[%clk 0:00:42.1]}
25. Ng4 {[%clk 0:00:46.8]} 25... g5 {[%clk 0:00:27.8]} 26. Qf3 {[%clk
0:00:29.1]} 26... Qxf3 {[%clk 0:00:27.8]} 27. Bxf3 {[%clk 0:00:29.6]} 27... Kg7
{[%clk 0:00:28.5]} 28. h6+ {[%clk 0:00:28.5]} 28... Kg8 {[%clk 0:00:12.2]} 29.
Be4 {[%clk 0:00:29.4]} 29... b5 {[%clk 0:00:07.4]} 30. Nf6+ {[%clk 0:00:22]}
30... Bxf6 {[%clk 0:00:06.7]} 31. exf6 {[%clk 0:00:22.9]} 31... b4 {[%clk
0:00:06.6]} 32. Bd2 {[%clk 0:00:23.1]} 32... g4 {[%clk 0:00:05]} 33. Be3 {[%clk
0:00:21.1]} 33... a5 {[%clk 0:00:04.4]} 34. Kh2 {[%clk 0:00:21.3]} 34... Ne5
{[%clk 0:00:04.2]} 35. Kg3 {[%clk 0:00:21.2]} 35... Nd7 {[%clk 0:00:03.4]} 36.
Bg5 {[%clk 0:00:19.8]} 36... Nc5 {[%clk 0:00:03.2]} 37. Bc2 {[%clk 0:00:19.2]}
37... Bc6 {[%clk 0:00:03.5]} 38. Bh4 {[%clk 0:00:14.5]} 38... Be4 {[%clk
0:00:01.2]} 39. Bd1 {[%clk 0:00:14.3]} 39... Bf5 {[%clk 0:00:01.1]} 40. Bxg4
{[%clk 0:00:14]} 40... Bxg4 {[%clk 0:00:01.6]} 41. Kxg4 {[%clk 0:00:14.3]} 41...
Nd3 {[%clk 0:00:02.3]} 42. b3 {[%clk 0:00:13.3]} 42... Nc1 {[%clk 0:00:02.7]}
43. Kf3 {[%clk 0:00:13]} 43... Nxa2 {[%clk 0:00:03.4]} 44. Ke3 {[%clk
0:00:12.5]} 44... Nc1 {[%clk 0:00:02.5]} 45. Kd2 {[%clk 0:00:12.8]} 45... Nxb3+
{[%clk 0:00:03.4]} 46. Kc2 {[%clk 0:00:13.2]} 46... Nc5 {[%clk 0:00:04]} 47. f4
{[%clk 0:00:12.9]} 47... a4 {[%clk 0:00:04.5]} 48. Be1 {[%clk 0:00:12.7]} 48...
b3+ {[%clk 0:00:04.4]} 49. Kb2 {[%clk 0:00:13.1]} 49... Nd3+ {[%clk 0:00:04.3]}
50. Ka3 {[%clk 0:00:12.9]} 50... Nxe1 {[%clk 0:00:05.2]} 0-1

[Event "*** Titled Tuesday Blitz"]
[Site "Chess.com"]
[Date "2021.04.06"]
[Round "10"]
[White "gahryman"]
[Black "Lenyas66"]
[Result "1-0"]
[WhiteElo "2723"]
[BlackElo "2511"]
[TimeControl "180+1"]
[EndTime "11:56:58 PDT"]
[Termination "gahryman won by resignation"]

1. d4 {[%clk 0:03:00.9]} 1... e6 {[%clk 0:02:59.3]} 2. Nf3 {[%clk 0:03:01]} 2...
c5 {[%clk 0:02:58.9]} 3. c3 {[%clk 0:03:00.5]} 3... Nc6 {[%clk 0:02:57.3]} 4. e3
{[%clk 0:02:57.4]} 4... Nf6 {[%clk 0:02:57.1]} 5. Nbd2 {[%clk 0:02:57.2]} 5...
Be7 {[%clk 0:02:57]} 6. Bd3 {[%clk 0:02:57.3]} 6... O-O {[%clk 0:02:56.3]} 7.
O-O {[%clk 0:02:57.3]} 7... d5 {[%clk 0:02:54.5]} 8. Qe2 {[%clk 0:02:55.1]} 8...
Qc7 {[%clk 0:02:53.6]} 9. dxc5 {[%clk 0:02:54.3]} 9... Bxc5 {[%clk 0:02:52.8]}
10. e4 {[%clk 0:02:55.2]} 10... Bb6 {[%clk 0:02:46.4]} 11. Kh1 {[%clk
0:02:31.6]} 11... h6 {[%clk 0:02:43.9]} 12. h3 {[%clk 0:02:31.3]} 12... Nh5
{[%clk 0:02:26]} 13. Nb3 {[%clk 0:02:25.8]} 13... Nf4 {[%clk 0:02:11.4]} 14.
Bxf4 {[%clk 0:02:25]} 14... Qxf4 {[%clk 0:02:11.2]} 15. e5 {[%clk 0:02:15.7]}
15... f6 {[%clk 0:02:00.6]} 16. exf6 {[%clk 0:02:08.2]} 16... Qxf6 {[%clk
0:01:59.8]} 17. Rae1 {[%clk 0:02:05]} 17... Bd7 {[%clk 0:01:54.1]} 18. Bb5
{[%clk 0:02:01.5]} 18... Rae8 {[%clk 0:01:51.4]} 19. Bxc6 {[%clk 0:01:57]} 19...
Bxc6 {[%clk 0:01:35.4]} 20. Nbd4 {[%clk 0:01:55.2]} 20... Bd7 {[%clk 0:00:48]}
21. Ne5 {[%clk 0:01:54.8]} 21... Bc8 {[%clk 0:00:48]} 22. f4 {[%clk 0:01:53.1]}
22... a6 {[%clk 0:00:41.1]} 23. Rf3 {[%clk 0:01:49.5]} 23... Bc7 {[%clk
0:00:32.4]} 24. Qe3 {[%clk 0:01:35.1]} 24... Qd8 {[%clk 0:00:22.3]} 25. Ref1
{[%clk 0:01:30.2]} 25... Rf6 {[%clk 0:00:22.3]} 26. g3 {[%clk 0:01:19.5]} 26...
Ref8 {[%clk 0:00:21.6]} 27. Kg2 {[%clk 0:01:18.9]} 27... Qd6 {[%clk 0:00:20.4]}
28. h4 {[%clk 0:01:18]} 28... Qb6 {[%clk 0:00:20.1]} 29. R1f2 {[%clk 0:01:16.3]}
29... Bd6 {[%clk 0:00:19.5]} 30. Re2 {[%clk 0:01:08.4]} 30... Qc7 {[%clk
0:00:18.9]} 31. h5 {[%clk 0:01:01.2]} 31... Bc5 {[%clk 0:00:18.3]} 32. Qd3
{[%clk 0:00:58]} 32... Rd8 {[%clk 0:00:17.8]} 33. Rfe3 {[%clk 0:00:57.7]} 33...
Rd6 {[%clk 0:00:17.4]} 34. Ng4 {[%clk 0:00:52.3]} 34... Bxd4 {[%clk 0:00:14.5]}
35. cxd4 {[%clk 0:00:49.3]} 35... Rf5 {[%clk 0:00:14.5]} 36. Re5 {[%clk
0:00:46.1]} 36... Bd7 {[%clk 0:00:11.6]} 37. Qf3 {[%clk 0:00:32.5]} 37... Qc4
{[%clk 0:00:09.3]} 38. Qc3 {[%clk 0:00:23.7]} 38... Qxc3 {[%clk 0:00:09.1]} 39.
bxc3 {[%clk 0:00:23.7]} 39... Rc6 {[%clk 0:00:09.2]} 40. Rxf5 {[%clk 0:00:20.4]}
40... exf5 {[%clk 0:00:08.9]} 41. Ne5 {[%clk 0:00:21.3]} 41... Rc7 {[%clk
0:00:09.1]} 42. Ng6 {[%clk 0:00:19.4]} 42... Kf7 {[%clk 0:00:08.5]} 43. Re7+
{[%clk 0:00:19.2]} 43... Kf6 {[%clk 0:00:08.7]} 44. Kf2 {[%clk 0:00:18.2]} 44...
b5 {[%clk 0:00:08.7]} 45. a3 {[%clk 0:00:17.9]} 45... Rb7 {[%clk 0:00:08.2]} 46.
Ke1 {[%clk 0:00:15.3]} 46... Bc6 {[%clk 0:00:08.1]} 47. Re5 {[%clk 0:00:14.4]}
47... Rb8 {[%clk 0:00:06.5]} 48. Kd2 {[%clk 0:00:14.3]} 48... Be8 {[%clk
0:00:06.6]} 49. Rxd5 {[%clk 0:00:11.9]} 49... Bxg6 {[%clk 0:00:06.1]} 50. Rd6+
{[%clk 0:00:12.5]} 50... Ke7 {[%clk 0:00:05.4]} 51. Rxg6 {[%clk 0:00:12.1]}
51... Kf7 {[%clk 0:00:05.4]} 52. Rxa6 {[%clk 0:00:12.2]} 1-0

[Event "*** Titled Tuesday Blitz"]
[Site "Chess.com"]
[Date "2021.04.06"]
[Round "10"]
[White "Sergey85Rodchenkov"]
[Black "McCarthyStone"]
[Result "1-0"]
[WhiteElo "2526"]
[BlackElo "2393"]
[TimeControl "180+1"]
[EndTime "11:57:00 PDT"]
[Termination "Sergey85Rodchenkov won by resignation"]

1. Nf3 {[%clk 0:03:00.9]} 1... d5 {[%clk 0:02:58.2]} 2. c4 {[%clk 0:03:00.4]}
2... d4 {[%clk 0:02:52.5]} 3. e3 {[%clk 0:02:58.4]} 3... dxe3 {[%clk 0:02:47.3]}
4. fxe3 {[%clk 0:02:58]} 4... Nf6 {[%clk 0:02:44.7]} 5. d4 {[%clk 0:02:58]} 5...
Bg4 {[%clk 0:02:44.5]} 6. Nc3 {[%clk 0:02:53.1]} 6... c6 {[%clk 0:02:44.9]} 7.
Bd3 {[%clk 0:02:53.1]} 7... Nbd7 {[%clk 0:02:42.8]} 8. O-O {[%clk 0:02:53]} 8...
e5 {[%clk 0:02:42.8]} 9. Qb3 {[%clk 0:02:51.5]} 9... Bxf3 {[%clk 0:02:40.2]} 10.
Rxf3 {[%clk 0:02:50.1]} 10... Qb6 {[%clk 0:02:40.8]} 11. c5 {[%clk 0:02:40.8]}
11... Qxb3 {[%clk 0:02:40.5]} 12. axb3 {[%clk 0:02:40.6]} 12... Be7 {[%clk
0:02:37.6]} 13. b4 {[%clk 0:02:40.3]} 13... a6 {[%clk 0:02:36.3]} 14. Rf5 {[%clk
0:02:36.5]} 14... g6 {[%clk 0:02:28.5]} 15. Rf1 {[%clk 0:02:32.2]} 15... O-O
{[%clk 0:02:28.2]} 16. Bc4 {[%clk 0:02:29.4]} 16... Kg7 {[%clk 0:02:18.2]} 17.
Bd2 {[%clk 0:02:28.2]} 17... Rad8 {[%clk 0:02:16.4]} 18. h3 {[%clk 0:02:14]}
18... h6 {[%clk 0:02:11.2]} 19. Be1 {[%clk 0:02:12.7]} 19... Nh7 {[%clk
0:01:54.2]} 20. Bg3 {[%clk 0:02:09.6]} 20... exd4 {[%clk 0:01:49.4]} 21. exd4
{[%clk 0:02:08.6]} 21... Bf6 {[%clk 0:01:49.8]} 22. Rad1 {[%clk 0:01:56.8]}
22... Rfe8 {[%clk 0:01:40.1]} 23. d5 {[%clk 0:01:51.3]} 23... Bxc3 {[%clk
0:01:27.5]} 24. bxc3 {[%clk 0:01:49.3]} 24... cxd5 {[%clk 0:01:27.2]} 25. Bxd5
{[%clk 0:01:46.5]} 25... Ndf6 {[%clk 0:01:16.2]} 26. Bxb7 {[%clk 0:01:44.7]}
26... Rxd1 {[%clk 0:01:16.1]} 27. Rxd1 {[%clk 0:01:44.2]} 27... Re3 {[%clk
0:01:17]} 28. Bf2 {[%clk 0:01:25.4]} 28... Rxc3 {[%clk 0:01:14.2]} 29. Bxa6
{[%clk 0:01:25.4]} 29... Nf8 {[%clk 0:01:09.5]} 30. b5 {[%clk 0:01:24.8]} 30...
Ne6 {[%clk 0:01:09.1]} 31. c6 {[%clk 0:01:24.6]} 31... Ne4 {[%clk 0:01:08]} 32.
Ba7 {[%clk 0:01:06.7]} 32... N4c5 {[%clk 0:00:55.1]} 33. Bc8 {[%clk 0:01:02.5]}
33... Nf4 {[%clk 0:00:28.8]} 34. Bg4 {[%clk 0:00:49.9]} 34... h5 {[%clk
0:00:16.3]} 35. Bf3 {[%clk 0:00:49.5]} 35... Nce6 {[%clk 0:00:11]} 36. b6 {[%clk
0:00:37.1]} 36... Ng5 {[%clk 0:00:03.4]} 37. b7 {[%clk 0:00:19.2]} 37... Nfxh3+
{[%clk 0:00:03.7]} 38. Kf1 {[%clk 0:00:18.5]} 38... Nxf3 {[%clk 0:00:04.6]} 39.
gxf3 {[%clk 0:00:17.1]} 39... Rxf3+ {[%clk 0:00:03.6]} 40. Ke2 {[%clk
0:00:17.2]} 40... Rc3 {[%clk 0:00:01.9]} 41. b8=Q {[%clk 0:00:17.1]} 41... Nf4+
{[%clk 0:00:02.8]} 42. Qxf4 {[%clk 0:00:16.4]} 42... Rxc6 {[%clk 0:00:03]} 43.
Qe5+ {[%clk 0:00:16.1]} 43... Kh7 {[%clk 0:00:03.3]} 44. Bd4 {[%clk 0:00:15.6]}
44... Re6 {[%clk 0:00:04.2]} 45. Qxe6 {[%clk 0:00:15.3]} 45... fxe6 {[%clk
0:00:05.1]} 46. Kf3 {[%clk 0:00:15.6]} 46... g5 {[%clk 0:00:05.2]} 47. Ke4
{[%clk 0:00:15.7]} 47... Kg6 {[%clk 0:00:05.7]} 48. Ke5 {[%clk 0:00:15.7]} 48...
g4 {[%clk 0:00:05.9]} 49. Be3 {[%clk 0:00:16]} 49... h4 {[%clk 0:00:06.2]} 50.
Kf4 {[%clk 0:00:16.6]} 50... g3 {[%clk 0:00:05.7]} 51. Kg4 {[%clk 0:00:14.3]}
51... g2 {[%clk 0:00:05.7]} 52. Kxh4 {[%clk 0:00:14.2]} 52... Kf5 {[%clk
0:00:05.6]} 53. Kg3 {[%clk 0:00:14.2]} 53... Ke4 {[%clk 0:00:06.5]} 54. Bf2
{[%clk 0:00:14.5]} 54... e5 {[%clk 0:00:06.6]} 55. Kxg2 {[%clk 0:00:15.3]} 55...
Kf5 {[%clk 0:00:07.5]} 56. Re1 {[%clk 0:00:15.9]} 1-0